bitfinex/quotes_BTCUSD_20240728
["timestamp","ask_amount","ask_price","bid_price","bid_amount"]
[1722146974467,1.7386531,67619.0,67618.0,0.000724]
[1722146974702,1.73865305,67619.0,67618.0,0.000724]
[1722146975113,1.6279919,67619.0,67618.0,0.000724]
[1722146975316,1.6259919,67619.0,67618.0,0.000724]
[1722146975553,1.74463262,67619.0,67618.0,0.000724]
[1722146976155,1.6339919,67619.0,67618.0,0.000724]
[1722146976342,1.74461638,67619.0,67618.0,0.000724]
[1722146976772,1.6339919,67619.0,67618.0,0.000724]
[1722146977029,1.9577109,67619.0,67618.0,0.000724]
[1722146977241,1.9637109,67619.0,67618.0,0.000724]
[1722146977464,1.9637109,67619.0,67618.0,0.00063085]
[1722146977879,1.95941382,67619.0,67618.0,0.00063085]
[1722146978097,2.10967339,67619.0,67618.0,0.00063085]
[1722146978324,2.21567339,67619.0,67618.0,0.00063085]
[1722146978747,0.828376,67602.0,67601.0,0.06145885]
[1722146978969,0.355023,67601.0,67600.0,0.45077872]
[1722146979182,0.355054,67595.0,67594.0,0.0816]
[1722146979417,0.591757,67595.0,67594.0,0.0816]
[1722146979617,0.60653176,67595.0,67594.0,0.0816]
[1722146980772,0.60953176,67595.0,67594.0,0.0816]
[1722146981607,0.01777476,67595.0,67591.0,0.087524]
[1722146981856,0.118355,67593.0,67592.0,0.1449]
[1722146982082,0.355065,67593.0,67592.0,0.1449]
[1722146982208,0.36974157,67593.0,67592.0,0.1449]
[1722146985689,0.01467657,67593.0,67592.0,0.263257]
[1722146986104,0.11835,67596.0,67592.0,0.263257]
[1722146986105,0.11835,67596.0,67592.0,0.118357]
[1722146986317,0.11835,67596.0,67594.0,0.0633]
[1722146986531,0.11835,67596.0,67595.0,0.1449]
[1722146987398,0.118347,67598.0,67596.0,0.0633]
[1722146987614,0.236693,67599.0,67596.0,0.0633]
[1722146987615,0.118348,67597.0,67596.0,0.0633]
[1722146988041,0.118348,67597.0,67596.0,0.1449]
[1722146988455,0.11817009,67597.0,67596.0,0.1449]
[1722146989066,0.35486609,67597.0,67596.0,0.1449]
[1722146989481,0.35886609,67597.0,67596.0,0.1449]
[1722146989682,0.37550082,67597.0,67596.0,0.1449]
[1722146989882,0.37150082,67597.0,67596.0,0.1449]
[1722146990091,0.36950082,67597.0,67596.0,0.1449]
[1722146992160,0.60619682,67597.0,67596.0,0.1449]
[1722146992390,0.64947691,67597.0,67596.0,0.1449]
[1722146993138,0.64947691,67597.0,67596.0,0.0633]
[1722146993139,0.69905437,67597.0,67596.0,0.0633]
[1722146993348,0.118357,67592.0,67591.0,0.005924]
[1722146993755,0.118357,67592.0,67591.0,0.0074782]
[1722146993756,0.355071,67592.0,67591.0,0.0074782]
[1722146993958,0.355071,67592.0,67591.0,0.0707782]
[1722146994181,0.355071,67592.0,67591.0,0.069224]
[1722146994182,0.36970573,67592.0,67591.0,0.069224]
[1722146994631,0.36970573,67592.0,67591.0,0.005924]
[1722146994632,0.60641973,67592.0,67591.0,0.005924]
[1722146995040,0.36970573,67592.0,67591.0,0.005924]
[1722146998201,0.60641973,67592.0,67591.0,0.005924]
[1722146998828,0.36970573,67592.0,67591.0,0.005924]
[1722146999168,0.69909033,67592.0,67591.0,0.005924]
[1722146999407,0.72729136,67592.0,67591.0,0.005924]
[1722146999825,0.68371973,67592.0,67591.0,0.005924]
[1722147000076,0.71192033,67592.0,67591.0,0.005924]
[1722147000280,0.72729082,67592.0,67591.0,0.005924]
[1722147000665,0.69909022,67592.0,67591.0,0.005924]
[1722147000937,0.7504524,67592.0,67591.0,0.005924]
[1722147001367,0.72225625,67592.0,67591.0,0.005924]
[1722147001573,0.75025088,67592.0,67591.0,0.005924]
[1722147002383,0.75125088,67592.0,67591.0,0.005924]
[1722147002628,0.75325088,67592.0,67591.0,0.005924]
[1722147002829,0.75425088,67592.0,67591.0,0.005924]
[1722147003059,0.72625625,67592.0,67591.0,0.005924]
[1722147003292,0.75124292,67592.0,67591.0,0.005924]
[1722147003520,0.75424292,67592.0,67591.0,0.005924]
[1722147003783,0.7542068,67592.0,67591.0,0.005924]
[1722147003998,0.9909208,67592.0,67591.0,0.005924]
[1722147005177,0.97555031,67592.0,67591.0,0.005924]
[1722147005910,1.05485031,67592.0,67591.0,0.005924]
[1722147006154,1.11686951,67592.0,67591.0,0.005924]
[1722147006382,1.1319005,67592.0,67591.0,0.005924]
[1722147006807,1.13161023,67592.0,67591.0,0.005924]
[1722147007509,0.81745287,67592.0,67591.0,0.005924]
[1722147007729,0.83316606,67592.0,67591.0,0.005924]
[1722147008122,0.75586606,67592.0,67591.0,0.005924]
[1722147008354,0.83316606,67592.0,67591.0,0.005924]
[1722147009196,1.06988006,67592.0,67591.0,0.005924]
[1722147009435,1.04227222,67592.0,67591.0,0.005924]
[1722147009661,1.07071773,67592.0,67591.0,0.005924]
[1722147009877,0.83400373,67592.0,67591.0,0.005924]
[1722147010901,0.75470373,67592.0,67591.0,0.005924]
[1722147011095,0.44068973,67592.0,67591.0,0.005924]
[1722147011319,0.20397573,67592.0,67591.0,0.005924]
[1722147011519,0.20397573,67592.0,67591.0,0.146424]
[1722147011720,0.44068973,67592.0,67591.0,0.146424]
[1722147012653,0.44055016,67592.0,67591.0,0.146424]
[1722147013049,0.41224422,67592.0,67591.0,0.146424]
[1722147013253,0.44055016,67592.0,67591.0,0.146424]
[1722147014422,0.20383616,67592.0,67591.0,0.146424]
[1722147015532,0.2037012,67592.0,67591.0,0.146424]
[1722147015980,0.20384004,67592.0,67591.0,0.146424]
[1722147016199,0.20384004,67592.0,67591.0,0.264782]
[1722147016200,0.08548304,67592.0,67591.0,0.264782]
[1722147016407,0.01863473,67592.0,67591.0,0.65175857]
[1722147016581,0.004,67592.0,67591.0,1.12519257]
[1722147017123,0.001,67592.0,67591.0,1.12519257]
[1722147017346,0.001,67592.0,67591.0,1.22519257]
[1722147017847,0.00084,67597.0,67596.0,0.72755]
[1722147018329,0.00084,67597.0,67596.0,1.11450957]
[1722147019884,0.00284,67597.0,67596.0,1.11450957]
[1722147020554,0.00284,67597.0,67596.0,0.87780957]
[1722147027745,0.00284,67597.0,67596.0,1.11450957]
[1722147028151,0.00284,67597.0,67596.0,1.1233808]
[1722147028349,0.00284,67597.0,67596.0,1.2233808]
[1722147028959,0.00184,67597.0,67596.0,1.2233808]
[1722147029524,0.00284,67597.0,67596.0,1.2233808]
[1722147029966,0.00184,67597.0,67596.0,1.2233808]
[1722147030204,0.00284,67597.0,67596.0,1.2233808]
[1722147030409,0.00284,67597.0,67596.0,0.3949308]
[1722147030622,0.00284,67597.0,67596.0,0.1]
[1722147030800,0.00184,67597.0,67596.0,0.11835]
[1722147031051,0.00184,67597.0,67595.0,0.01052437]
[1722147031052,0.01146141,67597.0,67595.0,0.01052437]
[1722147031259,0.01246141,67597.0,67596.0,0.004]
[1722147031470,0.01246141,67597.0,67596.0,0.12235]
[1722147031683,0.01146141,67597.0,67595.0,0.1199052]
[1722147032087,0.01146141,67597.0,67596.0,0.009]
[1722147032088,0.02028855,67597.0,67596.0,0.009]
[1722147032716,0.01928855,67597.0,67594.0,0.0015542]
[1722147032929,0.01928855,67597.0,67594.0,0.1199072]
[1722147033141,0.01828855,67597.0,67594.0,0.1199072]
[1722147033546,0.01928855,67597.0,67596.0,0.012]
[1722147033750,0.01828855,67597.0,67595.0,0.0015542]
[1722147034155,0.01928855,67597.0,67595.0,0.0015542]
[1722147034362,0.01928855,67597.0,67595.0,0.0055542]
[1722147034363,0.02028855,67597.0,67595.0,0.0055542]
[1722147034852,0.01928855,67597.0,67595.0,0.0055542]
[1722147035428,0.01928855,67597.0,67596.0,0.11835]
[1722147036051,0.01928855,67597.0,67596.0,0.3566042]
[1722147036289,0.01928855,67597.0,67596.0,0.7291042]
[1722147036290,0.00966714,67597.0,67596.0,0.7291042]
[1722147036516,0.00284,67597.0,67596.0,0.72755]
[1722147036864,0.00284,67597.0,67596.0,0.73455]
[1722147037192,0.00384,67597.0,67596.0,0.49785]
[1722147037544,0.00284,67597.0,67596.0,0.49785]
[1722147037745,0.00384,67597.0,67596.0,0.50185]
[1722147040785,0.00384,67597.0,67596.0,0.42665]
[1722147041462,0.00384,67597.0,67596.0,0.36605]
[1722147047465,0.00384,67597.0,67596.0,0.36585]
[1722147049861,0.08134,67597.0,67596.0,0.36585]
[1722147050262,0.1219115,67597.0,67596.0,0.36585]
[1722147051529,0.14799933,67597.0,67596.0,0.36585]
[1722147051770,0.14805141,67597.0,67596.0,0.36585]
[1722147052173,0.1219115,67597.0,67596.0,0.36585]
[1722147052367,0.14805145,67597.0,67596.0,0.36585]
[1722147054154,0.14803889,67597.0,67596.0,0.36585]
[1722147055273,0.14804421,67597.0,67596.0,0.011]
[1722147055587,0.17708899,67597.0,67596.0,0.12935]
[1722147057059,0.17708899,67597.0,67596.0,0.13082074]
[1722147057435,0.17708899,67597.0,67596.0,0.12935]
[1722147057643,0.17708899,67597.0,67596.0,0.1309042]
[1722147057851,0.17708899,67597.0,67596.0,0.12935]
[1722147058264,0.17708899,67597.0,67596.0,0.1308922]
[1722147058462,0.09979486,67597.0,67596.0,0.3675922]
[1722147058670,0.09979486,67597.0,67596.0,0.60275]
[1722147058671,0.10071444,67597.0,67596.0,0.60275]
[1722147058896,0.07075008,67597.0,67596.0,0.60275]
[1722147059060,0.05333974,67597.0,67596.0,0.36605]
[1722147059267,0.07075336,67597.0,67596.0,0.36605]
[1722147059674,0.10239824,67597.0,67596.0,0.36605]
[1722147059874,0.10239824,67597.0,67596.0,0.3676042]
[1722147060086,0.10239824,67597.0,67596.0,0.6676042]
[1722147060895,0.08498462,67597.0,67596.0,0.6676042]
[1722147061099,0.08498462,67597.0,67596.0,0.66605]
[1722147061299,0.08543137,67597.0,67596.0,0.66605]
[1722147061779,0.08536085,67597.0,67596.0,0.66605]
[1722147061983,0.08536085,67597.0,67596.0,0.6676042]
[1722147062227,0.10277447,67597.0,67596.0,0.6676042]
[1722147062431,0.10277447,67597.0,67596.0,1.05456377]
[1722147062638,0.02125362,67597.0,67596.0,1.53210957]
[1722147062807,0.00384,67597.0,67596.0,1.53210957]
[1722147071172,0.00384,67597.0,67596.0,1.52930957]
[1722147078349,0.00384,67597.0,67596.0,1.53023357]
[1722147081636,0.00384,67597.0,67596.0,1.46793357]
[1722147081895,0.08004,67597.0,67596.0,1.46793357]
[1722147082673,0.00384,67597.0,67596.0,1.46793357]
[1722147084807,0.00384,67597.0,67596.0,1.39063357]
[1722147085017,0.00384,67597.0,67596.0,1.46793357]
[1722147089554,0.14434,67597.0,67596.0,1.15393357]
[1722147089729,0.14434,67597.0,67596.0,0.411924]
[1722147089730,0.1779295,67597.0,67596.0,0.411924]
[1722147089936,0.32345886,67597.0,67596.0,0.411924]
[1722147090117,0.36406341,67597.0,67596.0,0.411924]
[1722147090337,0.60012606,67597.0,67596.0,0.411924]
[1722147090977,0.60012653,67597.0,67596.0,0.311924]
[1722147091454,0.36343053,67597.0,67596.0,0.311924]
[1722147091865,0.60012653,67597.0,67596.0,0.311924]
[1722147092071,0.83682253,67597.0,67596.0,0.311924]
[1722147092469,1.18859878,67597.0,67596.0,0.311924]
[1722147092664,1.07251853,67597.0,67596.0,0.307924]
[1722147092825,1.07037379,67597.0,67596.0,0.300924]
[1722147093232,1.07037379,67597.0,67596.0,0.305924]
[1722147093452,0.83307195,67597.0,67596.0,0.300924]
[1722147093653,0.83307195,67597.0,67596.0,0.305924]
[1722147094093,0.83307195,67597.0,67596.0,0.300924]
[1722147094501,0.83607195,67597.0,67596.0,0.300924]
[1722147094925,0.83607195,67597.0,67596.0,0.302924]
[1722147095325,0.83607195,67597.0,67596.0,0.300924]
[1722147095544,0.59937595,67597.0,67596.0,0.300924]
[1722147095730,0.60437595,67597.0,67596.0,0.300924]
[1722147095939,0.84107195,67597.0,67596.0,0.300924]
[1722147096493,0.60437595,67597.0,67596.0,0.300924]
[1722147096961,0.24933195,67597.0,67596.0,0.300924]
[1722147097427,0.33409045,67597.0,67596.0,0.300924]
[1722147097925,0.21574245,67597.0,67596.0,0.300924]
[1722147098599,0.18994455,67597.0,67596.0,0.300924]
[1722147098809,0.18994455,67597.0,67596.0,0.419274]
[1722147098995,0.12564455,67597.0,67596.0,0.733274]
[1722147099208,0.10248349,67597.0,67596.0,0.733274]
[1722147100173,0.09948349,67597.0,67596.0,0.733274]
[1722147100506,0.09948349,67597.0,67596.0,0.739274]
[1722147100507,0.10048349,67597.0,67596.0,0.739274]
[1722147100720,0.10048349,67597.0,67596.0,0.975974]
[1722147100932,0.10048349,67597.0,67596.0,0.739274]
[1722147100933,0.09548349,67597.0,67596.0,0.739274]
[1722147101121,0.07804,67597.0,67596.0,0.742274]
[1722147102077,0.07804,67597.0,67596.0,0.978974]
[1722147105495,0.07804,67597.0,67596.0,0.742274]
[1722147106173,0.07804,67597.0,67596.0,0.664974]
[1722147107783,0.09545539,67597.0,67596.0,0.664974]
[1722147107994,0.07804,67597.0,67596.0,0.664974]
[1722147111097,0.07804,67597.0,67596.0,0.901674]
[1722147111312,0.07804,67597.0,67596.0,0.978974]
[1722147111722,0.07804,67597.0,67596.0,0.742274]
[1722147112167,0.07804,67597.0,67596.0,0.978974]
[1722147112384,0.07804,67597.0,67596.0,0.742274]
[1722147113245,0.07804,67597.0,67596.0,0.978974]
[1722147113448,0.07804,67597.0,67596.0,0.742274]
[1722147113665,0.13199548,67597.0,67596.0,0.978974]
[1722147114329,0.15515719,67597.0,67596.0,0.978974]
[1722147114552,0.10501774,67597.0,67596.0,0.978974]
[1722147115657,0.10501774,67597.0,67596.0,0.428274]
[1722147115874,0.10501774,67597.0,67596.0,0.664974]
[1722147115875,0.21801388,67597.0,67596.0,0.664974]
[1722147116118,0.23542728,67597.0,67596.0,0.664974]
[1722147116548,0.26827046,67597.0,67596.0,0.664974]
[1722147117210,0.23542728,67597.0,67596.0,0.664974]
[1722147117432,0.26830893,67597.0,67596.0,0.664974]
[1722147117651,0.23542728,67597.0,67596.0,0.664974]
[1722147118359,0.20844954,67597.0,67596.0,0.428274]
[1722147118809,0.24107655,67597.0,67596.0,0.428274]
[1722147119224,0.24107655,67597.0,67596.0,0.664974]
[1722147119437,0.20844954,67597.0,67596.0,0.664974]
[1722147119656,0.24134354,67597.0,67596.0,0.664974]
[1722147120360,0.20843225,67597.0,67596.0,0.664974]
[1722147120796,0.24138952,67597.0,67596.0,0.664974]
[1722147121471,0.20843225,67597.0,67596.0,0.664974]
[1722147122119,0.18151573,67597.0,67596.0,0.664974]
[1722147122349,0.20856083,67597.0,67596.0,0.664974]
[1722147122572,0.20852534,67597.0,67596.0,0.664974]
[1722147123232,0.24136762,67597.0,67596.0,0.664974]
[1722147124161,0.17846762,67597.0,67596.0,0.664974]
[1722147125584,0.17838055,67597.0,67596.0,0.664974]
[1722147125788,0.17838055,67597.0,67596.0,0.309924]
[1722147128868,0.17851703,67597.0,67596.0,0.309924]
[1722147129433,0.17851703,67597.0,67596.0,0.428274]
[1722147129650,0.17851703,67597.0,67596.0,0.742274]
[1722147129651,0.10231703,67597.0,67596.0,0.742274]
[1722147132132,0.10300768,67597.0,67596.0,0.742274]
[1722147132660,0.1030413,67597.0,67596.0,0.742274]
[1722147133308,0.10595992,67597.0,67596.0,0.742274]
[1722147135142,0.10595992,67597.0,67596.0,0.428274]
[1722147135385,0.10622819,67597.0,67596.0,0.428274]
[1722147135975,0.10622819,67597.0,67596.0,0.664974]
[1722147136624,0.10622819,67597.0,67596.0,0.428274]
[1722147136834,0.18372819,67597.0,67596.0,0.428274]
[1722147138778,0.18363882,67597.0,67596.0,0.428274]
[1722147140615,0.18344235,67597.0,67596.0,0.428274]
[1722147141926,0.15574433,67597.0,67596.0,0.428274]
[1722147142146,0.18352311,67597.0,67596.0,0.428274]
[1722147142367,0.18352271,67597.0,67596.0,0.428274]
[1722147142585,0.18347326,67597.0,67596.0,0.428274]
[1722147143071,0.24827326,67597.0,67596.0,0.428274]
[1722147144414,0.24831732,67597.0,67596.0,0.428274]
[1722147145268,0.24831732,67597.0,67596.0,0.4298282]
[1722147145487,0.24830434,67597.0,67596.0,0.4298282]
[1722147145704,0.24830434,67597.0,67596.0,0.428274]
[1722147145916,0.24830434,67597.0,67596.0,0.4298282]
[1722147146337,0.24830434,67597.0,67596.0,0.428274]
[1722147146551,0.24830434,67597.0,67596.0,0.4298282]
[1722147148291,0.24830434,67597.0,67596.0,0.428274]
[1722147148506,0.24830434,67597.0,67596.0,0.42932609]
[1722147148727,0.2482878,67597.0,67596.0,0.42932609]
[1722147150003,0.2482878,67597.0,67596.0,0.428274]
[1722147151191,0.22054433,67597.0,67596.0,0.664974]
[1722147151390,0.18353394,67597.0,67596.0,0.664974]
[1722147152041,0.15574433,67597.0,67596.0,0.664974]
[1722147152211,0.18373743,67597.0,67596.0,0.664974]
[1722147152616,0.1480395,67597.0,67596.0,0.428274]
[1722147152819,0.18503087,67597.0,67596.0,0.428274]
[1722147154103,0.18503087,67597.0,67596.0,0.664974]
[1722147154316,0.18506059,67597.0,67596.0,0.664974]
[1722147154910,0.18006059,67597.0,67596.0,0.664974]
[1722147155326,0.1519071,67597.0,67596.0,0.664974]
[1722147155745,0.18001954,67597.0,67596.0,0.664974]
[1722147157180,0.10251954,67597.0,67596.0,1.215674]
[1722147157399,0.03741573,67597.0,67596.0,1.215674]
[1722147157612,0.0174134,67597.0,67596.0,1.85163357]
[1722147157842,0.0769,67607.0,67597.0,0.0661]
[1722147158077,0.06728784,67606.0,67605.0,0.118333]
[1722147158347,0.09044695,67606.0,67605.0,0.355001]
[1722147158565,0.09044695,67606.0,67605.0,0.118333]
[1722147158566,0.06238387,67606.0,67605.0,0.118333]
[1722147158792,0.09032741,67606.0,67605.0,0.118333]
[1722147159026,0.09032741,67606.0,67605.0,0.355001]
[1722147159495,0.09032741,67606.0,67605.0,0.360001]
[1722147159709,0.09032741,67606.0,67605.0,0.123333]
[1722147159961,0.09032741,67606.0,67605.0,0.360001]
[1722147160408,0.09132741,67606.0,67605.0,0.367001]
[1722147161997,0.09122412,67606.0,67605.0,0.367001]
[1722147162413,0.091225,67606.0,67605.0,0.367001]
[1722147163085,0.05200024,67606.0,67605.0,0.603669]
[1722147163531,0.001,67606.0,67605.0,0.680969]
[1722147164787,0.05240508,67606.0,67605.0,0.444301]
[1722147164988,0.001,67606.0,67605.0,0.680969]
[1722147165195,0.02415856,67606.0,67605.0,0.680969]
[1722147165397,0.001,67606.0,67605.0,0.680969]
[1722147165815,0.001,67606.0,67605.0,0.917637]
[1722147166031,0.001,67606.0,67605.0,0.680969]
[1722147171238,0.001,67606.0,67605.0,0.603669]
[1722147171435,0.001,67606.0,67605.0,0.680969]
[1722147172070,0.001,67606.0,67605.0,0.68968751]
[1722147172769,0.00184,67606.0,67605.0,0.68968751]
[1722147173404,0.00184,67606.0,67605.0,0.61238751]
[1722147173578,0.07874,67606.0,67605.0,0.37571951]
[1722147174447,0.07874,67606.0,67605.0,0.61238751]
[1722147175289,0.07874,67606.0,67605.0,0.02071851]
[1722147175498,0.07874,67606.0,67605.0,0.13905251]
[1722147175914,0.09619378,67606.0,67605.0,0.13905251]
[1722147176343,0.09619378,67606.0,67605.0,0.02071851]
[1722147176572,0.18916202,67606.0,67605.0,0.02071851]
[1722147176818,0.21232117,67606.0,67605.0,0.02071851]
[1722147177053,0.33065317,67606.0,67605.0,0.012]
[1722147177304,0.21232117,67606.0,67605.0,0.012]
[1722147177954,0.25053885,67606.0,67605.0,0.012]
[1722147178178,0.22237061,67606.0,67605.0,0.012]
[1722147178414,0.25075862,67606.0,67605.0,0.012]
[1722147179069,0.36909062,67606.0,67605.0,0.012]
[1722147179278,0.25075862,67606.0,67605.0,0.012]
[1722147179690,0.36909062,67606.0,67605.0,0.012]
[1722147180335,0.25075862,67606.0,67605.0,0.012]
[1722147181190,0.25084663,67606.0,67605.0,0.312]
[1722147181883,0.25084586,67606.0,67605.0,0.312]
[1722147183580,0.25084776,67606.0,67605.0,0.312]
[1722147183815,0.25084722,67606.0,67605.0,0.312]
[1722147187285,0.2508106,67606.0,67605.0,0.312]
[1722147190597,0.25101592,67606.0,67605.0,0.312]
[1722147191031,0.25083409,67606.0,67605.0,0.312]
[1722147193376,0.36916609,67606.0,67605.0,0.312]
[1722147193809,0.36921848,67606.0,67605.0,0.312]
[1722147194393,0.84254848,67606.0,67605.0,0.312]
[1722147194625,0.60588348,67606.0,67605.0,0.312]
[1722147195841,0.36921848,67606.0,67605.0,0.312]
[1722147196481,0.18608648,67606.0,67605.0,0.312]
[1722147196893,0.10918648,67606.0,67605.0,0.507634]
[1722147197100,0.10918602,67606.0,67605.0,0.744302]
[1722147197296,0.07096807,67606.0,67605.0,0.744302]
[1722147199627,0.07096807,67606.0,67605.0,1.04337]
[1722147199833,0.05351429,67606.0,67605.0,1.04337]
[1722147200435,0.05346117,67606.0,67605.0,1.04337]
[1722147200917,0.05346125,67606.0,67605.0,1.04337]
[1722147202497,0.02499915,67606.0,67605.0,1.04337]
[1722147202718,0.05330064,67606.0,67605.0,1.04337]
[1722147203415,0.05330064,67606.0,67605.0,0.667002]
[1722147203617,0.19300064,67606.0,67605.0,0.312]
[1722147203846,0.19300064,67606.0,67605.0,0.430334]
[1722147203847,0.23262745,67606.0,67605.0,0.430334]
[1722147204228,0.25009732,67606.0,67605.0,0.430334]
[1722147207108,0.25012637,67606.0,67605.0,0.430334]
[1722147209437,0.25012637,67606.0,67605.0,0.430234]
[1722147210451,0.25002782,67606.0,67605.0,0.430234]
[1722147210726,0.25002781,67606.0,67605.0,0.430234]
[1722147211137,0.25002778,67606.0,67605.0,0.430234]
[1722147211514,0.84168978,67606.0,67605.0,0.3119]
[1722147211704,1.22861435,67606.0,67605.0,0.3119]
[1722147211902,1.52793242,67606.0,67605.0,0.3119]
[1722147212229,1.67779417,67606.0,67605.0,0.3119]
[1722147212642,1.67779417,67606.0,67605.0,0.307]
[1722147212850,1.67779417,67606.0,67605.0,0.3]
[1722147212851,1.52693242,67606.0,67605.0,0.3]
[1722147213056,1.52893242,67606.0,67605.0,0.3]
[1722147213271,1.53593242,67606.0,67605.0,0.301]
[1722147213477,1.44304473,67606.0,67605.0,0.301]
[1722147213682,1.29655925,67606.0,67605.0,0.301]
[1722147214106,1.42971173,67606.0,67605.0,0.301]
[1722147214962,1.31055925,67606.0,67605.0,0.301]
[1722147215171,1.30355925,67606.0,67605.0,0.301]
[1722147215353,1.43666826,67606.0,67605.0,0.3]
[1722147215584,1.43666826,67606.0,67605.0,0.301]
[1722147215788,1.30155925,67606.0,67605.0,0.301]
[1722147216191,1.4346698,67606.0,67605.0,0.301]
[1722147216743,1.35449028,67606.0,67605.0,0.301]
[1722147216944,1.44420576,67606.0,67605.0,0.301]
[1722147217145,1.31109521,67606.0,67605.0,0.301]
[1722147217419,1.44420576,67606.0,67605.0,0.301]
[1722147217624,1.55312395,67606.0,67605.0,0.301]
[1722147218233,1.4200134,67606.0,67605.0,0.301]
[1722147220102,1.41979405,67606.0,67605.0,0.301]
[1722147220315,1.5528431,67606.0,67605.0,0.301]
[1722147220542,1.41979405,67606.0,67605.0,0.301]
[1722147220748,1.41863936,67606.0,67605.0,0.301]
[1722147222085,1.30972117,67606.0,67605.0,0.301]
[1722147223124,1.44273727,67606.0,67605.0,0.301]
[1722147223336,1.22137973,67606.0,67605.0,0.301]
[1722147223542,1.31027313,67606.0,67605.0,0.301]
[1722147226692,1.24856972,67606.0,67605.0,0.301]
[1722147226949,1.46044729,67606.0,67605.0,0.301]
[1722147229663,1.31018772,67606.0,67605.0,0.301]
[1722147230081,1.31045839,67606.0,67605.0,0.301]
[1722147230488,1.22137973,67606.0,67605.0,0.301]
[1722147230696,1.31052754,67606.0,67605.0,0.301]
[1722147231828,1.38782754,67606.0,67605.0,0.301]
[1722147232250,1.38775039,67606.0,67605.0,0.301]
[1722147233083,1.38170965,67606.0,67605.0,0.301]
[1722147233282,1.38232215,67606.0,67605.0,0.301]
[1722147233456,1.38216365,67606.0,67605.0,0.301]
[1722147239735,1.38216365,67606.0,67605.0,0.301924]
[1722147239974,1.35467391,67606.0,67605.0,0.301924]
[1722147240190,1.38230227,67606.0,67605.0,0.301924]
[1722147240416,1.35466729,67606.0,67605.0,0.301924]
[1722147240671,1.3822887,67606.0,67605.0,0.301924]
[1722147242248,1.29263899,67606.0,67605.0,0.301924]
[1722147242456,1.38226131,67606.0,67605.0,0.301924]
[1722147245478,1.3546035,67606.0,67605.0,0.301924]
[1722147245724,1.38215799,67606.0,67605.0,0.301924]
[1722147248949,1.38212521,67606.0,67605.0,0.301924]
[1722147251344,1.51512595,67606.0,67605.0,0.301924]
[1722147252094,1.29263899,67606.0,67605.0,0.301924]
[1722147252313,1.51509572,67606.0,67605.0,0.301924]
[1722147252644,1.38201011,67606.0,67605.0,0.301924]
[1722147254459,1.29263899,67606.0,67605.0,0.301924]
[1722147254664,1.38202596,67606.0,67605.0,0.301924]
[1722147255483,1.29263899,67606.0,67605.0,0.301924]
[1722147255699,1.38201885,67606.0,67605.0,0.301924]
[1722147261395,1.38183987,67606.0,67605.0,0.301924]
[1722147261599,1.32013987,67606.0,67605.0,0.301924]
[1722147262146,1.31999406,67606.0,67605.0,0.301924]
[1722147264694,1.24269406,67606.0,67605.0,0.301924]
[1722147264952,1.31999406,67606.0,67605.0,0.301924]
[1722147265672,1.31999161,67606.0,67605.0,0.301924]
[1722147268859,1.25819531,67606.0,67605.0,0.301924]
[1722147269066,1.3200461,67606.0,67605.0,0.301924]
[1722147272462,1.31987456,67606.0,67605.0,0.301924]
[1722147272909,1.31990261,67606.0,67605.0,0.301924]
[1722147274769,1.31976988,67606.0,67605.0,0.301924]
[1722147275592,1.31978932,67606.0,67605.0,0.301924]
[1722147278050,1.38268932,67606.0,67605.0,0.301924]
[1722147278420,1.51084278,67606.0,67605.0,0.301924]
[1722147278842,1.50804682,67606.0,67605.0,0.301924]
[1722147279698,1.37989336,67606.0,67605.0,0.301924]
[1722147279975,1.37989336,67606.0,67605.0,0.301724]
[1722147281993,1.29366001,67606.0,67605.0,0.301724]
[1722147282220,1.37989873,67606.0,67605.0,0.301724]
[1722147282649,1.37990024,67606.0,67605.0,0.301724]
[1722147283483,1.51877318,67606.0,67605.0,0.301724]
[1722147284375,1.43253295,67606.0,67605.0,0.301724]
[1722147284586,1.51878322,67606.0,67605.0,0.301724]
[1722147284998,1.30261028,67606.0,67605.0,0.301724]
[1722147285195,1.37991028,67606.0,67605.0,0.301724]
[1722147285396,1.38001317,67606.0,67605.0,0.301724]
[1722147285798,1.23981317,67606.0,67605.0,0.301724]
[1722147286013,1.31711317,67606.0,67605.0,0.301724]
[1722147287225,1.46719246,67606.0,67605.0,0.301724]
[1722147287399,1.31711317,67606.0,67605.0,0.301724]
[1722147287610,1.46719246,67606.0,67605.0,0.301724]
[1722147288614,1.15276001,67606.0,67605.0,0.361724]
[1722147288852,1.240476,67606.0,67605.0,0.361724]
[1722147289069,0.77625143,67606.0,67605.0,0.361724]
[1722147291233,0.90958087,67606.0,67605.0,0.361724]
[1722147291932,0.90967695,67606.0,67605.0,0.361724]
[1722147292164,0.90967695,67606.0,67605.0,0.561258]
[1722147292165,0.12355534,67606.0,67605.0,0.561258]
[1722147292382,0.09687344,67606.0,67605.0,0.561258]
[1722147292589,0.12354577,67606.0,67605.0,0.561258]
[1722147293633,0.11354577,67606.0,67605.0,0.561258]
[1722147294377,0.08687344,67606.0,67605.0,0.561258]
[1722147294495,0.11362594,67606.0,67605.0,0.561258]
[1722147294698,0.10162594,67606.0,67605.0,0.560258]
[1722147295144,0.10464435,67606.0,67605.0,0.560258]
[1722147296794,0.10505463,67606.0,67605.0,0.560258]
[1722147298082,0.08758476,67606.0,67605.0,0.796926]
[1722147298289,0.05377006,67606.0,67605.0,0.796926]
[1722147298509,0.08573143,67606.0,67605.0,0.560258]
[1722147298973,0.04441764,67606.0,67605.0,0.560258]
[1722147299385,0.02125849,67606.0,67605.0,0.560258]
[1722147299808,0.02125849,67606.0,67605.0,0.796926]
[1722147300218,0.00384,67606.0,67605.0,0.796926]
[1722147313326,0.00084,67606.0,67605.0,0.796926]
[1722147313735,0.00084,67606.0,67605.0,0.479058]
[1722147313930,0.00084,67606.0,67605.0,0.311724]
[1722147313931,0.7519527,67606.0,67605.0,0.311724]
[1722147314139,1.13216861,67606.0,67605.0,0.311724]
[1722147314343,1.42975307,67606.0,67605.0,0.311724]
[1722147315362,1.42975307,67606.0,67605.0,0.304724]
[1722147315363,1.42875307,67606.0,67605.0,0.304724]
[1722147315567,1.43875307,67606.0,67605.0,0.305724]